Cogmind - Beta 13 @@@ ROGUE MODE // 2024.04.06 @ 21:51:13 Player: nixie Result: Destroyed by G-47 Trooper with Particle Gun Performance ------------- Evolutions (2) 1000 Regions Visited (4) 800 Robots Destroyed (29) 145 Value Destroyed (799) 799 Prototype IDs (3) 60 Alien Tech Used (0) 0 Bonus (0) 0 TOTAL SCORE: 2804 Bonus ------- None Cogmind --------- Core Integrity 0/550 Matter 16/300 Energy 98/100 System Corruption 2% Temperature Cool (18) Movement Core (50) Location -8/Materials Parts ------- > --- POWER (1) -------- (None) > --- PROPULSION (3) --- (None) > --- UTILITY (5) ------ (None) > --- WEAPON (2) ------- (None) > --- INVENTORY (5) ---- (None) Peak State ------------ > --- POWER ------------ Light Deuterium Engine > --- PROPULSION ------- Improved Titanium Leg Improved Titanium Leg Improved Titanium Leg > --- UTILITY ---------- Large Storage Unit Improved Sensor Array Improved Signal Interpreter Targeting Computer Sensor Drone Bay > --- WEAPON ----------- Improved EM Shotgun Rocket Launcher > --- INVENTORY -------- Light Ion Engine Light Ion Engine Improved Treads Improved Titanium Leg Medium Matter Pod Experimental Sensor Array Improved Signal Interpreter Recalibrator Remote Datajack Remote Datajack [Rating: 39] Favorites ----------- Power Ion Engine Engine Ion Engine Propulsion Improved Treads Treads Improved Treads Leg Aluminum Leg Utility Targeting Computer Device Sensor Drone Bay Storage Large Storage Unit Processor Targeting Computer Weapon Light Assault Rifle Energy Gun Improved EM Shotgun Energy Cannon Beam Cannon Ballistic Gun Light Assault Rifle Ballistic Cannon Improved Light Cannon Launcher Rocket Launcher Special Weapon Remote Datajack Build | -11 -10 -10 -9 -8 ------- Run | Yrd Mat Min Mat Mat Slots Evolved 4 | . . . 2 2 Power . | . . . . . Propulsion 1 | . . . 1 . Utility 3 | . . . 1 2 Weapon . | . . . . . Parts Attached 45 | 5 6 10 16 8 Power 6 | 1 . 2 1 2 Engine 6 | 1 . 2 1 2 Core . | . . . . . Reactor . | . . . . . Propulsion 13 | 2 . 2 6 3 Treads 8 | 2 . . 6 . Leg 5 | . . 2 . 3 Wheel . | . . . . . Hover . | . . . . . Flight . | . . . . . Utility 7 | 1 1 2 1 2 Device 2 | . . 1 . 1 Storage 3 | 1 . 1 1 . Processor 2 | . 1 . . 1 Hackware . | . . . . . Protection . | . . . . . Artifact . | . . . . . Weapon 19 | 1 5 4 8 1 Energy Gun 7 | . 2 . 5 . Energy Cannon 1 | . 1 . . . Ballistic Gun 7 | 1 2 3 1 . Ballistic Cannon 1 | . . . 1 . Launcher 2 | . . 1 1 . Special Weapon 1 | . . . . 1 Impact Weapon . | . . . . . Slashing Weapon . | . . . . . Piercing Weapon . | . . . . . Special Melee Weapon . | . . . . . Unidentified Prototypes 3 | . . 1 2 . Corrupted Parts 1 | . . . . 1 System Corruption 2 | . . . . 2 Parts Lost 9 | . . 3 2 4 Power 2 | . . 1 1 . Propulsion 3 | . . 2 . 1 Utility 1 | . . . . 1 Weapon 3 | . . . 1 2 Highest Loss Streak 4 | . . 3 1 4 To Critical Strikes . | . . . . . Average Slot Usage (%) 93 | . 98 98 88 84 Engine 11 | . 14 13 9 7 Treads 18 | . 28 11 24 9 Leg 8 | . . 15 1 14 Device 7 | . . 6 11 12 Storage 9 | . 14 7 10 8 Processor 13 | . 13 14 11 15 Energy Gun 3 | . 3 . 6 7 Energy Cannon 1 | . 7 . . . Ballistic Gun 12 | . 16 24 1 . Launcher 5 | . . 2 11 7 Naked Turns 32 | . . . . 32 Heaviest Build 47 | 11 14 24 47 47 Greatest Support 69 | 40 40 40 69 69 Greatest Overweight (x) 7 | . . 2 1 7 Average Overweight (x) . | . . . . . Largest Inventory Capacity 15 | 8 8 8 15 15 Average Capacity 10 | 6 8 5 14 14 Most Carried 10 | 4 4 6 9 10 Average Carried 3 | 1 2 3 4 7 Final Capacity 15 | 8 8 5 15 5 Final Carried 5 | 1 3 3 5 . Class Distribution -------------------- 100% | Mutant Dominant Class ---------------- Mutant | -10/Materials Mutant | -10/Mines Mutant | -9/Materials Mutant | -8/Materials Resources | -11 -10 -10 -9 -8 ----------- Run | Yrd Mat Min Mat Mat Matter Collected 848 | 250 37 323 205 33 Remotely . | . . . . . Salvage Created 801 | . 27 281 372 121 Parts 52 | . 3 9 24 16 Haulers Intercepted 1 | . . . . 1 Recyclers Shooed . | . . . . . Parts Field Recycled . | . . . . . Retrieved Matter . | . . . . . Parts Self-Destructed . | . . . . . Prevented . | . . . . . Kills | -11 -10 -10 -9 -8 ------- Run | Yrd Mat Min Mat Mat Combat Hostiles Destroyed 27 | . . 13 10 4 Guns 13 | . . 11 2 . Cannons 1 | . . . 1 . AOE 12 | . . 1 7 4 Classes Destroyed 8 | . 1 3 2 2 Builder 2 | . . 1 . 1 Hauler 1 | . . . . 1 Operator 1 | . . . 1 . Watcher 6 | . 1 . 3 2 Swarmer 4 | . . . . 4 Grunt 13 | . . 5 8 . Sentry 2 | . . . 2 . Assembled 8 | . . 8 . . Best Kill Streak 6 | . 1 3 4 6 Combat Bots Only 4 | . . 3 3 4 Max Kills in Single Turn 2 | . 1 2 2 2 Gunslinging 1 | . . 1 . . Exploded 2 | . . 1 2 2 Melee . | . . . . . Uniques/NPCs Destroyed . | . . . . . Combat | -11 -10 -10 -9 -8 -------- Run | Yrd Mat Min Mat Mat Hostile Shots Fired 182 | . . 68 23 91 Missed 54 | . . 20 6 28 Damage Taken 2187 | . 72 651 264 1200 Core 680 | . . 122 . 558 Absorbed by Shields . | . . . . . Regen/Repaired (Parts) 35 | . . . 35 . Core Remaining (%) 83 | 100 . 51 100 . Volleys Fired 95 | . 4 48 31 12 Largest 2 | . 2 2 2 2 Hottest 80 | . 80 80 78 78 Shots Fired 165 | . 8 96 44 17 Gun 113 | . 6 77 22 8 Cannon 22 | . 2 16 4 . Launcher 29 | . . 3 18 8 Special 1 | . . . . 1 Kinetic 97 | . 6 77 14 . Thermal 18 | . 2 16 . . Explosive 29 | . . 3 18 8 Electromagnetic 20 | . . . 12 8 Robot Hit Streak 9 | . 2 9 8 3 Robot Miss Streak 5 | . 2 4 4 5 Penetration Max . | . . . . . Secondary Targets 1 | . . 1 . . Max Gunslinging Chain 1 | . . 1 . . Shots Hit Robots 97 | . 4 56 28 9 Core Hits 77 | . 1 33 29 14 Critical Kills 1 | . . 1 . . Critical Parts Destroyed . | . . . . . Critical Strikes 2 | . . 1 1 . Meltdown 1 | . . 1 . . Blast 1 | . . . 1 . Melee Attacks . | . . . . . Impact . | . . . . . Slashing . | . . . . . Piercing . | . . . . . Sneak Attacks . | . . . . . Combat Hostiles . | . . . . . Follow-up Attacks . | . . . . . Damage Inflicted 2229 | . 46 639 1066 478 Guns 660 | . 29 353 198 80 Cannons 243 | . 17 156 70 . Explosions 1290 | . . 118 793 379 Melee . | . . . . . Ramming 36 | . . 12 5 19 Kinetic 495 | . 29 353 113 . Thermal 318 | . 17 156 69 76 Explosive 1145 | . . 118 724 303 Electromagnetic 235 | . . . 155 80 Impact . | . . . . . Slashing . | . . . . . Piercing . | . . . . . Highest Corruption 2 | . . . . 2 Average Corruption 2 | . . . . 2 Corruption Purged . | . . . . . Corruption Blocked . | . . . . . Effects 3 | . . . . 3 Matter Fused 1 | . . . . 1 Heat Flow Errors 1 | . . . . 1 Energy Discharges 1 | . . . . 1 Overload Shots . | . . . . . Overflow Damage 18 | . . . 18 . Projectiles . | . . . . . Explosions 18 | . . . 18 . Melee . | . . . . . Knockbacks . | . . . . . Impact . | . . . . . Kinetic . | . . . . . Secondary . | . . . . . Self-Inflicted Damage 90 | . . . 47 43 Shots 3 | . . . 1 2 Rammed 7 | . . 4 1 2 Targets Rammed 9 | . . 5 1 3 Kicked 2 | . . 1 . 1 Crushed . | . . . . . Highest Temperature 286 | . 60 286 32 80 Average Temperature 67 | . 30 105 10 15 Received Heat Transfer 481 | . . 271 138 72 Siege Activations . | . . . . . Robots Corrupted . | . . . . . Combat Hostiles . | . . . . . Parts Fried . | . . . . . Impact Corruptions . | . . . . . Robots Melted 1 | . . 1 . . Combat Hostiles 1 | . . 1 . . Parts Melted 4 | . 1 3 . . Heat Transferred 520 | . 37 333 100 50 Parts Sabotaged . | . . . . . Parts Stolen . | . . . . . Parts Stripped . | . . . . . Power Chain Reactions 2 | . . . 1 1 Alert | -11 -10 -10 -9 -8 ------- Run | Yrd Mat Min Mat Mat Peak Influence 272 | . 7 70 272 272 Initial 63 | . . . 15 63 Average 85 | . 3 40 158 132 Maximum Alert Level 1 | . . . 1 1 Low Security (%) 86 | 100 100 100 70 77 Level 1 13 | . . . 29 22 Level 2 . | . . . . . Level 3 . | . . . . . Level 4 . | . . . . . Level 5 . | . . . . . High Security . | . . . . . Max Security . | . . . . . Squads Dispatched 4 | . . . 1 3 Investigation . | . . . . . Extermination . | . . . . . Reinforcement 4 | . . . 1 3 Assault . | . . . . . Garrison . | . . . . . Intercept . | . . . . . Searches Triggered . | . . . . . Construction Impeded . | . . . . . Haulers Reinforced . | . . . . . Active Scanning Responses . | . . . . . Cargo Convoy Interrupts . | . . . . . Stealth | -11 -10 -10 -9 -8 --------- Run | Yrd Mat Min Mat Mat Distress Signals 3 | . . 2 . 1 Communications Jammed . | . . . . . Distress Signals . | . . . . . Times Spotted 57 | . 5 14 18 20 Peak Tracking Total 13 | . 3 2 3 13 Tactical Retreats 4 | . . 2 1 1 Traps | -11 -10 -10 -9 -8 ------- Run | Yrd Mat Min Mat Mat Traps Triggered 2 | . 2 . . . Indirectly . | . . . . . Trap Hack Attempts . | . . . . . Triggered . | . . . . . Disarmed . | . . . . . Reprogrammed . | . . . . . Reused . | . . . . . Traps Extracted . | . . . . . Installed . | . . . . . Triggered . | . . . . . Machines | -11 -10 -10 -9 -8 ---------- Run | Yrd Mat Min Mat Mat Machines Disabled 2 | . . . 1 1 Max in Single Turn 1 | . . . 1 1 Machines Repaired . | . . . . . Machines Dismantled . | . . . . . Machines Sabotaged . | . . . . . Overloaded Fab Kills . | . . . . . Hacking | -11 -10 -10 -9 -8 --------- Run | Yrd Mat Min Mat Mat Machines Accessed 5 | . 1 1 3 . Terminals 2 | . . . 2 . Fabricators . | . . . . . Repair Stations 1 | . . . 1 . Recycling Units 1 | . 1 . . . Scanalyzers . | . . . . . Garrison Access . | . . . . . Total Hacks 15 | . 4 1 10 . Successful 11 | . 4 1 6 . Failed 4 | . . . 4 . Catastrophic 1 | . . . 1 . Database Lockouts . | . . . . . Manual 1 | . . . 1 . Terminals 5 | . . . 5 . Fabricators . | . . . . . Repair Stations 5 | . . . 5 . Recycling Units 4 | . 4 . . . Scanalyzers . | . . . . . Garrison Access . | . . . . . Terminal Hacks 3 | . . 1 2 . Open Door 1 | . . 1 . . Transport Status 1 | . . . 1 . Investigation Status 1 | . . . 1 . Fabricator Hacks . | . . . . . Repair Station Hacks 4 | . . . 4 . Scan Component 3 | . . . 3 . Repair 1 | . . . 1 . Recycling Unit Hacks 4 | . 4 . . . Process 2 | . 2 . . . Report Inventory 1 | . 1 . . . Retrieve Components 1 | . 1 . . . Scanalyzer . | . . . . . Garrison Access Hacks . | . . . . . Unauthorized Hacks . | . . . . . Terminals . | . . . . . Fabricators . | . . . . . Repair Stations . | . . . . . Recycling Units . | . . . . . Scanalyzers . | . . . . . Garrison Access . | . . . . . Data Cores Recovered . | . . . . . Used . | . . . . . Hacking Detections 2 | . 1 . 1 . Full Trace Events . | . . . . . Feedback Events . | . . . . . Feedback Blocked . | . . . . . Robot Schematics Acquired . | . . . . . Robots Built . | . . . . . Authchips . | . . . . . Time . | . . . . . Total Robot Build Rating . | . . . . . Part Schematics Acquired . | . . . . . Parts Built . | . . . . . Authchips . | . . . . . Time . | . . . . . Total Part Build Rating . | . . . . . Parts Repaired 1 | . . . 1 . Time 32 | . . . 32 . Parts Recycled . | . . . . . Recycled Matter 73 | . 73 . . . Retrieved Matter . | . . . . . Retrieved Components . | . . . . . Parts Scanalyzed . | . . . . . Part Schematics Acquired . | . . . . . Parts Damaged . | . . . . . Bothacking | -11 -10 -10 -9 -8 ------------ Run | Yrd Mat Min Mat Mat Used RIF Installer . | . . . . . Robots Hacked 1 | . . . . 1 Non-combat . | . . . . . Combat 1 | . . . . 1 Robot Hacks Applied 1 | . . . . 1 parse_system 1 | . . . . 1 Relay Couplers Released . | . . . . . Fabnet Peak Effective % . | . . . . . Robots Rewired . | . . . . . Allies Hacked . | . . . . . Hacks Repelled . | . . . . . Allies | -11 -10 -10 -9 -8 -------- Run | Yrd Mat Min Mat Mat Total Allies . | . . . . . Largest Group . | . . . . . Highest-Rated Group . | . . . . . Highest-Rated Ally . | . . . . . Total Orders . | . . . . . Ally Attacks . | . . . . . Total Damage . | . . . . . Kills . | . . . . . Allies Corrupted . | . . . . . Allies Melted . | . . . . . Intel | -11 -10 -10 -9 -8 ------- Run | Yrd Mat Min Mat Mat Robot Analysis Total . | . . . . . Derelict Logs Recovered 1 | . . 1 . . Drone Launches 20 | . . . . 20 Drone Recoveries 2 | . . . . 2 Exploration | -11 -10 -10 -9 -8 ------------- Run | Yrd Mat Min Mat Mat Turns Passed 3208 | 106 431 1183 1105 383 Spaces Moved 1786 | 73 250 615 588 260 Core 93 | 20 . 18 . 55 Treads 1170 | 53 250 234 566 67 Legs 523 | . . 363 22 138 Wheels . | . . . . . Hover . | . . . . . Flight . | . . . . . Fastest Speed 50 | 50 160 100 160 50 Average Speed 156 | 129 160 165 164 123 Slowest Speed 400 | 160 160 190 240 400 Overloaded Moves . | . . . . . Propulsion Burnouts . | . . . . . Robots Hopped . | . . . . . Cave-ins Triggered . | . . . . . Exploration Rate (%) 34 | 6 32 74 37 25 Regions Visited 4 Branch Regions 1 Pre-discovered Areas 1 | . . 1 . . Known Exits Taken . | . . . . . Unknown Exits Taken 4 | 1 1 1 1 . Scrap Searched 1 | . . 1 . . Spaces Dug . | . . . . . Terrain Destroyed 243 | . . 30 131 82 Melee . | . . . . . Projectile . | . . . . . AOE 243 | . . 30 131 82 Terrain Rammed . | . . . . . Walls Destroyed . | . . . . . Machines Disabled . | . . . . . Actions | -11 -10 -10 -9 -8 --------- Run | Yrd Mat Min Mat Mat Total 2069 | 85 278 706 689 311 Wait 20 | . . . 20 . Move 1782 | 72 249 614 587 260 Hop . | . . . . . Pick Up 58 | 7 8 13 17 13 Fast Attach . | . . . . . Attach 37 | 5 6 10 13 3 Detach 17 | . 4 6 7 . Swap 8 | . . . 3 5 Drop 40 | 1 4 10 10 15 Fire 95 | . 4 48 31 12 Melee . | . . . . . Ram 2 | . . . . 2 Kick 2 | . . 1 . 1 Crush 5 | . . 4 1 . Escape Stasis . | . . . . . Rewire 3 | . 3 . . . Trap . | . . . . . Miscellaneous . | . . . . . Route ------- -11/Scrapyard -10/Materials (discovered 2 exits: *Mat / *Min) -10/Mines (discovered 2 exits: *Mat x2) -9/Materials -8/Materials History --------- Turn | Location | Event 18 | -11/Scrapyard | Discovered new exit (range 14) 107 | -11/Scrapyard | Entered Materials 261 | -10/Materials | Discovered new exit (range 15) 322 | -10/Materials | Build established: Mutant 448 | -10/Materials | Discovered new exit (range 5) 538 | -10/Materials | Entered Mines 539 | -10/Mines | Assembled infested the area 862 | -10/Mines | Found a damaged Exp. Sensor Array with a note attached 866 | -10/Mines | Found Prototype Device 1066 | -10/Mines | Lost 3 parts (1p2n) 1194 | -10/Mines | Found the Drone Emporium 1203 | -10/Mines | Found Prototype Device 1206 | -10/Mines | Identified Sensor Drone Bay 1492 | -10/Mines | Discovered new exit (range 7) 1495 | -10/Mines | Received a Rocket Launcher from a helpful Derelict 1559 | -10/Mines | Discovered new exit (range 7) 1661 | -10/Mines | Learned location of Storage (-8) 1721 | -10/Mines | Entered Materials 1721 | -9/Materials | Evolved 2 slots: Propulsion x1, Utility x1 2066 | -9/Materials | Repaired Beam Rifle 2817 | -9/Materials | Discovered new exit (range 5) 2826 | -9/Materials | Entered another Materials area 2826 | -8/Materials | Evolved 2 slots: Utility x2 3177 | -8/Materials | Released all parts (1) 3182 | -8/Materials | Lost 13 allies 3192 | -8/Materials | Lost 4 parts (1n1u2w) 3192 | -8/Materials | Core integrity fell below 50% 3207 | -8/Materials | Core integrity fell below 20% 3209 | -8/Materials | Destroyed by G-47 Trooper with Particle Gun Last Messages --------------- Targeting Computer destroyed. Critical hit (Blast). Jacked C-17 Slicer... >>parse_system Reading system data... Imp. Titanium Leg severed. Remote Datajack severed. Imp. Signal Interpreter severed. Released Lrg. Storage Unit. Dropped Lgt. Ion Engine. Dropped Med. Matter Pod. Dropped Recalibrator. Acquired Ion Cannon. C-17 Slicer destroyed. Dropped Ion Cannon. Dropped Arm. Treads. Dropped Prototype Device. Slammed into S-10 Pest. Destabilizing: Core damaged (-22). K-01 Serf collects debris. Map ----- +----------------------------------------------------+ | | | | | | | | | ???????????????????????????????? | | ???????????????????????????????? | | ???????????????????????????????? | | ???????????????????????????????? | | ???????????????????????????????? | | ???????????????????????????????? | | ??????? ??????????????????????? | | ??????? ??????????????????????? | | ??????? k??????????????????????? | | ???????g #?????????????????????? | | ??????? #?????????????????????? | | ??????? #??????? ?????????????? | | ??????? #??????? ?????????????? | | ??????# #??????? #????????????? | | ?????## ######## ##???????????? | | ?????# [ #???????????? | | ?????# #???????????? | | ?????# """ """ +???????????? | | ?????# """ "Y" #???????????? | | ?????# """ g #???????????? | | ?????# g #???????????? | | ?????# @ #???????????? | | ?????# #?+#????????? | | ?????# sg ## #????????? | | ?????## ###+#### ## #????????? | | ??????# # # ## #????????? | | ??????#s# + !## ##???????? | | ??????# #! """ # * #???????? | | ???#### # """ # ! #??????? | | ???# c#% """ ##### #??????? | | ???# # #???# #??????! | | ???# ##+#####???# #????? | | ???# ! #???????# #???? ? | | ???# =] #???????# #####+### | | ???# ######### =! | | ???# !|= | | ???################# | | ???????????????????############# | | ???????????????????????########? | | ???????????????????????# | | ???????????????????????# T | | ???????????????????????# """ | | ???????????????????????# """ | | ???????????????????????????? """ | | ??????????????????????????? | | ?????????????????????????? | +----------------------------------------------------+ Best States ------------- Heat Dissipation 31 Energy Generation 14 Energy Capacity 250 Matter Stores 400 Matter Capacity 400 Sight Range 16 Robot Scan Range 15 Terrain Scan Density 10 Evasion (%) 55 Targeting Accuracy 5 Recoil Reduction 3 Item Schematics ----------------- None Robot Schematics ------------------ None Fabricated ------------ Nothing Alien Tech Used ----------------- None Achievements -------------- I Spy I Survived The Infestation Release The Drones! Remodeling Challenges ------------ None Game ------ Seed SniperFluxGravjet Manual? 0 Play Time 00:34:33 Cumulative 3.2 hours Start 2024.04.06 @ 21:18:55 End 2024.04.06 @ 21:51:13 Sessions 1 Manual Loads 0 Difficulty Rogue Special Mode None Game No. 9 Rogue 8 Adventurer 1 Explorer 0 Win Type - Total 0 Types 0/0/0/0/0/0/0/0/0 Lore% 2 Gallery% 11 Achievement% 9 Wizard Run 0 Options --------- Layout 1 ASCII 0 Keyboard 0 Movement Arrows Keybinds 0 Fullscreen 1 Font 32/Terminus Map View 50x40 Zoom Use 0% Tactical HUD 0 Map Filters NONE Filters NONE Steam 1 RUN: 73abf1c9-d437-4f04-bec3-dc5dc940dff9